fUST/lending_fUST_20260404
["ID","MTS","AMOUNT","RATE_DAILY","PERIOD"]
[419685740,1775281849844,-207.543901,0.000234,2]
[419685741,1775281849856,-502.93054465,0.00023438,2]
[419685742,1775281849869,-154.62481605,0.00023446,2]
[419685743,1775281849880,-500.0,0.00023479,2]
[419685744,1775281849891,-511.74477466,0.00023479,2]
[419685745,1775281849902,-500.0,0.00023479,2]
[419685746,1775281849913,-502.5538129,0.00023491,2]
[419685747,1775281849924,-500.0,0.00023491,2]
[419685748,1775281849936,-212.72897859,0.00023808,2]
[419685749,1775281849947,-221.65495957,0.00023808,2]
[419685750,1775281849958,-382.52924931,0.00023808,2]
[419685751,1775281849969,-200.0,0.0002381,2]
[419685752,1775281849980,-166.0,0.00023937,3]
[419685753,1775281849991,-946.0,0.00023937,3]
[419685754,1775281850002,-946.0,0.00023937,3]
[419685755,1775281850014,-647.0,0.00023937,3]
[419685756,1775281850025,-946.0,0.00023937,3]
[419685757,1775281850036,-647.0,0.00023937,3]
[419685758,1775281850046,-225.38977988,0.00023937,3]
[419685759,1775281850057,-946.0,0.00023937,3]
[419685760,1775281850068,-339.0,0.00023937,3]
[419685761,1775281850079,-647.0,0.00023937,3]
[419685762,1775281850090,-946.0,0.00023937,3]
[419685763,1775281850102,-647.0,0.00023937,3]
[419685764,1775281850113,-339.0,0.00023937,3]
[419685765,1775281850124,-946.0,0.00023937,3]
[419685766,1775281850135,-339.0,0.00023937,3]
[419685767,1775281850147,-647.0,0.00023937,3]
[419685768,1775281850159,-946.0,0.00023937,3]
[419685769,1775281850170,-339.0,0.00023937,3]
[419685770,1775281850181,-647.0,0.00023937,3]
[419685771,1775281850191,-946.0,0.00023937,3]
[419685772,1775281850202,-466.79861355,0.00023937,3]
[419685773,1775281850213,-647.0,0.00023937,3]
[419685774,1775281850224,-1091.425184,0.00023937,3]
[419685775,1775281850235,-647.0,0.00023937,3]
[419685776,1775281850246,-647.0,0.00023937,3]
[419685777,1775281850258,-488.25628181,0.00023937,3]
[419685778,1775281850269,-270.83333333,0.00023937,3]
[419685779,1775281850281,-152.055422,0.00023937,2]
[419685780,1775281850293,-151.36745,0.00023937,2]
[419685781,1775281850306,-151.0,0.00023937,2]
[419685782,1775281850319,-151.0,0.00023937,2]
[419685783,1775281850331,-151.0,0.00023937,2]
[419685784,1775281850343,-151.0,0.00023937,2]
[419685785,1775281850469,-152.196628,0.00023937,2]
[419685786,1775281850483,-151.0,0.00023937,2]
[419685787,1775281850493,-151.0,0.00023937,2]
[419685788,1775281850502,-151.0,0.00023937,2]
[419685789,1775281850512,-289.579926,0.00023937,2]
[419685790,1775281850521,-151.0,0.00023937,2]
[419685791,1775281850530,-151.475708,0.00023937,2]
[419685792,1775281850540,-158.77953,0.00023937,2]
[419685793,1775281850551,-151.0,0.00023937,2]
[419685794,1775281850560,-151.0,0.00023937,2]
[419685795,1775281850570,-151.0,0.00023937,2]
[419685796,1775281850579,-175.065664,0.00023937,2]
[419685797,1775281850589,-151.0,0.00023937,2]
[419685798,1775281850599,-151.0,0.00023937,2]
[419685799,1775281850608,-279.912584,0.00023937,2]
[419685800,1775281850618,-151.0,0.00023937,2]
[419685801,1775281850627,-151.0,0.00023937,2]
[419685802,1775281850636,-151.0,0.00023937,2]
[419685803,1775281850646,-151.0,0.00023937,2]
[419685804,1775281850655,-261.145196,0.00023937,2]
[419685805,1775281850664,-1617.44914,0.00023937,2]
[419685806,1775281850673,-1617.44914,0.00023937,2]
[419685807,1775281850683,-1617.44914,0.00023937,2]
[419685808,1775281850692,-1617.44914,0.00023937,2]
[419685809,1775281850701,-151.0,0.00023937,2]
[419685810,1775281850711,-151.0,0.00023937,2]
[419685811,1775281850721,-151.0,0.00023937,2]
[419685812,1775281850730,-151.0,0.00023937,2]
[419685813,1775281850740,-313.118936,0.00023937,2]
[419685814,1775281850749,-313.118936,0.00023937,2]
[419685815,1775281850759,-313.118936,0.00023937,2]
[419685816,1775281850768,-313.118936,0.00023937,2]
[419685817,1775281850777,-151.0,0.00023937,2]
[419685818,1775281850787,-151.0,0.00023937,2]
[419685819,1775281850796,-151.0,0.00023937,2]
[419685820,1775281850806,-259.73675071,0.00023937,2]
[419685821,1775281850815,-151.0,0.00023937,2]
[419685822,1775281850825,-151.0,0.00023937,2]
[419685823,1775281850834,-151.0,0.00023937,2]
[419685824,1775281850843,-151.0,0.00023937,2]
[419685825,1775281850854,-151.0,0.00023937,2]
[419685826,1775281850864,-151.0,0.00023937,2]
[419685827,1775281850873,-151.0,0.00023937,2]
[419685828,1775281850884,-151.0,0.00023937,2]
[419685829,1775281850894,-151.0,0.00023937,2]
[419685830,1775281850905,-151.0,0.00023937,2]
[419685831,1775281850915,-268.031567,0.00023937,2]
[419685832,1775281850925,-152.183409,0.00023937,2]
[419685833,1775281850936,-151.0,0.00023937,2]
[419685834,1775281850947,-151.0,0.00023937,2]
[419685835,1775281850957,-151.0,0.00023937,2]
[419685836,1775281850966,-151.0,0.00023937,2]
[419685837,1775281850976,-860.07329,0.00023937,2]
[419685838,1775281850987,-860.07329,0.00023937,2]
[419685839,1775281850998,-860.07329,0.00023937,2]
[419685840,1775281851007,-860.07329,0.00023937,2]
[419685841,1775281851016,-151.0,0.00023937,2]
[419685842,1775281851026,-151.0,0.00023937,2]
[419685843,1775281851035,-151.0,0.00023937,2]
[419685844,1775281851046,-151.0,0.00023937,2]
[419685845,1775281851055,-151.0,0.00023937,2]
[419685846,1775281851065,-151.0,0.00023937,2]
[419685847,1775281851076,-392.127728,0.00023937,2]
[419685848,1775281851085,-392.127728,0.00023937,2]
[419685849,1775281851095,-392.127728,0.00023937,2]
[419685850,1775281851104,-392.127728,0.00023937,2]
[419685851,1775281851116,-392.127728,0.00023937,2]
[419685852,1775281851126,-392.127728,0.00023937,2]
[419685853,1775281851135,-392.127728,0.00023937,2]
[419685854,1775281851144,-392.127728,0.00023937,2]
[419685855,1775281851154,-151.0,0.00023937,2]
[419685856,1775281851164,-151.0,0.00023937,2]
[419685857,1775281851174,-151.0,0.00023937,2]
[419685858,1775281851183,-154.045402,0.00023937,2]
[419685859,1775281851194,-217.859818,0.00023937,2]
[419685860,1775281851204,-151.0,0.00023937,2]
[419685861,1775281851213,-217.859818,0.00023937,2]
[419685862,1775281851223,-151.0,0.00023937,2]
[419685863,1775281851232,-217.859818,0.00023937,2]
[419685864,1775281851242,-217.859818,0.00023937,2]
[419685865,1775281851251,-217.859818,0.00023937,2]
[419685866,1775281851260,-217.859818,0.00023937,2]
[419685867,1775281851270,-217.859818,0.00023937,2]
[419685868,1775281851280,-217.859818,0.00023937,2]
[419685869,1775281851289,-151.0,0.00023995,2]
[419685870,1775281851298,-151.0,0.00023995,2]
[419685871,1775281851308,-151.0,0.00023995,2]
[419685872,1775281851317,-151.0,0.00023995,2]
[419685873,1775281851327,-151.0,0.00023995,2]
[419685874,1775281851337,-1617.44914,0.00023995,2]
[419685875,1775281851347,-1617.44914,0.00023995,2]
[419685876,1775281851356,-1617.44914,0.00023995,2]
[419685877,1775281851366,-1617.44914,0.00023995,2]
[419685878,1775281851375,-151.0,0.00023995,2]
[419685879,1775281851384,-151.0,0.00023995,2]
[419685880,1775281851394,-151.0,0.00023995,2]
[419685881,1775281851404,-313.118936,0.00023995,2]
[419685882,1775281851415,-313.118936,0.00023995,2]
[419685883,1775281851424,-313.118936,0.00023995,2]
[419685884,1775281851434,-313.118936,0.00023995,2]
[419685885,1775281851443,-151.0,0.00023995,2]
[419685886,1775281851453,-151.0,0.00023995,2]
[419685887,1775281851463,-151.0,0.00023995,2]
[419685888,1775281851472,-151.0,0.00023995,2]
[419685889,1775281851482,-151.0,0.00023995,2]
[419685890,1775281851492,-151.0,0.00023995,2]
[419685891,1775281851501,-151.0,0.00023995,2]
[419685892,1775281851512,-151.0,0.00023995,2]
[419685893,1775281851523,-151.0,0.00023995,2]
[419685894,1775281851533,-151.0,0.00023995,2]
[419685895,1775281851544,-151.0,0.00023995,2]
[419685896,1775281851554,-151.0,0.00023995,2]
[419685897,1775281851563,-151.0,0.00023995,2]
[419685898,1775281851572,-151.0,0.00023995,2]
[419685899,1775281851582,-151.0,0.00023995,2]
[419685900,1775281851592,-151.0,0.00023995,2]
[419685901,1775281851601,-860.07329,0.00023995,2]
[419685902,1775281851611,-860.07329,0.00023995,2]
[419685903,1775281851620,-860.07329,0.00023995,2]
[419685904,1775281851629,-860.07329,0.00023995,2]
[419685905,1775281851639,-151.0,0.00023995,2]
[419685906,1775281851649,-151.0,0.00023995,2]
[419685907,1775281851659,-151.0,0.00023995,2]
[419685908,1775281851669,-392.127728,0.00023995,2]
[419685909,1775281851678,-392.127728,0.00023995,2]
[419685910,1775281851690,-392.127728,0.00023995,2]
[419685911,1775281851699,-392.127728,0.00023995,2]
[419685912,1775281851709,-151.0,0.00023995,2]
[419685913,1775281851719,-151.0,0.00023995,2]
[419685914,1775281851729,-188.966543,0.00023995,2]
[419685915,1775281851739,-217.859818,0.00023995,2]
[419685916,1775281851748,-151.0,0.00023995,2]
[419685917,1775281851758,-217.859818,0.00023995,2]
[419685918,1775281851767,-217.859818,0.00023995,2]
[419685919,1775281851777,-217.859818,0.00023995,2]
[419685920,1775281851786,-2204.0,0.00023995,2]
[419685921,1775281851796,-644.0,0.00023995,2]
[419685922,1775281851805,-1405.0,0.00023995,2]
[419685923,1775281851814,-323.0,0.00024,2]
[419685924,1775281851824,-455.1219555,0.00024063,2]
[419685925,1775281851834,-1076.34,0.0002426,3]
[419685926,1775281851844,-538.18,0.0002426,3]
[419685927,1775281851853,-963.38020547,0.00024444,2]
[419685928,1775281851862,-151.0,0.0002446,2]
[419685929,1775281851872,-151.0,0.0002446,2]
[419685930,1775281851881,-151.0,0.0002446,2]
[419685931,1775281851890,-151.0,0.0002446,2]
[419685932,1775281851900,-151.0,0.00024658,2]
[419685933,1775281851909,-151.0,0.00024658,2]
[419685934,1775281851919,-6403.04177917,0.00024799,2]
[419685935,1775281851929,-151.0,0.00024799,2]
[419685936,1775281851938,-151.0,0.00024799,2]
[419685937,1775281851947,-151.0,0.00024799,2]
[419685938,1775281851956,-151.0,0.00024799,2]
[419685939,1775281851966,-151.0,0.00024799,2]
[419685940,1775281851975,-151.0,0.00024799,2]
[419685941,1775281851987,-151.0,0.00024799,2]
[419685942,1775281851996,-151.0,0.00024799,2]
[419685943,1775281852007,-313.118936,0.00024799,2]
[419685944,1775281852016,-313.118936,0.00024799,2]
[419685945,1775281852025,-313.118936,0.00024799,2]
[419685946,1775281852035,-313.118936,0.00024799,2]
[419685947,1775281852044,-151.0,0.00024799,2]
[419685948,1775281852054,-151.0,0.00024799,2]
[419685949,1775281852063,-151.0,0.00024799,2]
[419685950,1775281852072,-151.0,0.00024799,2]
[419685951,1775281852082,-151.0,0.00024799,2]
[419685952,1775281852091,-151.0,0.00024799,2]
[419685953,1775281852100,-151.0,0.00024799,2]
[419685954,1775281852109,-151.0,0.00024799,2]
[419685955,1775281852119,-151.0,0.00024799,2]
[419685956,1775281852128,-151.0,0.00024799,2]
[419685957,1775281852137,-151.0,0.00024799,2]
[419685958,1775281852146,-190.572393,0.00024799,2]
[419685959,1775281852156,-151.0,0.00024799,2]
[419685960,1775281852165,-273.353,0.00024799,2]
[419685961,1775281852174,-151.0,0.00024799,2]
[419685962,1775281852183,-257.855665,0.00024799,2]
[419685963,1775281852194,-860.07329,0.00024799,2]
[419685964,1775281852204,-860.07329,0.00024799,2]
[419685965,1775281852215,-860.07329,0.00024799,2]
[419685966,1775281852224,-860.07329,0.00024799,2]
[419685967,1775281852234,-151.0,0.00024799,2]
[419685968,1775281852245,-161.733144,0.00024799,2]
[419685969,1775281852256,-299.818307,0.00024799,2]
[419685970,1775281852266,-392.127728,0.00024799,2]
[419685971,1775281852277,-392.127728,0.00024799,2]
[419685972,1775281852287,-392.127728,0.00024799,2]
[419685973,1775281852296,-392.127728,0.00024799,2]
[419685974,1775281852306,-151.0,0.00024799,2]
[419685975,1775281852316,-151.0,0.00024799,2]
[419685976,1775281852325,-217.859818,0.00024799,2]
[419685977,1775281852335,-151.0,0.00024799,2]
[419685978,1775281852344,-217.859818,0.00024799,2]
[419685979,1775281852353,-217.859818,0.00024799,2]
[419685980,1775281852363,-217.859822,0.00024799,2]
[419685981,1775281852372,-300.0,0.00025,3]
[419685982,1775281852382,-8009.19339252,0.00025,2]
[419685983,1775281852391,-2000.0,0.00025,2]
[419685984,1775281852401,-151.0,0.00025,2]
[419685985,1775281852410,-151.0,0.00025,2]
[419685986,1775281852419,-242.73948,0.00025,2]
[419685987,1775281852428,-151.0,0.00025,2]
[419685988,1775281852437,-151.0,0.00025,2]
[419685989,1775281852446,-1617.44914,0.00025,2]
[419685990,1775281852456,-1617.44914,0.00025,2]
[419685991,1775281852465,-1617.44914,0.00025,2]
[419685992,1775281852476,-1617.44914,0.00025,2]
[419685993,1775281852485,-151.0,0.00025,2]
[419685994,1775281852494,-151.0,0.00025,2]
[419685995,1775281852504,-151.0,0.00025,2]
[419685996,1775281852515,-313.118936,0.00025,2]
[419685997,1775281852526,-313.118936,0.00025,2]
[419685998,1775281852536,-313.118936,0.00025,2]
[419685999,1775281852547,-313.118936,0.00025,2]
[419686000,1775281852557,-151.0,0.00025,2]
[419686001,1775281852568,-151.0,0.00025,2]
[419686002,1775281852577,-151.0,0.00025,2]
[419686003,1775281852587,-151.0,0.00025,2]
[419686004,1775281852596,-289.454088,0.00025,2]
[419686005,1775281852605,-151.0,0.00025,2]
[419686006,1775281852693,-299.870239,0.00025,2]
[419686007,1775281852704,-151.0,0.00025,2]
[419686008,1775281852714,-151.0,0.00025,2]
[419686009,1775281852724,-151.0,0.00025,2]
[419686010,1775281852733,-151.0,0.00025,2]
[419686011,1775281852742,-151.0,0.00025,2]
[419686012,1775281852753,-860.07329,0.00025,2]
[419686013,1775281852763,-860.07329,0.00025,2]
[419686014,1775281852774,-860.07329,0.00025,2]
[419686015,1775281852787,-860.073296,0.00025,2]
[419686016,1775281852797,-151.0,0.00025,2]
[419686017,1775281852808,-392.127728,0.00025,2]
[419686018,1775281852819,-392.127728,0.00025,2]
[419686019,1775281852828,-392.127728,0.00025,2]
[419686020,1775281852838,-392.127723,0.00025,2]
[419686021,1775281852848,-151.0,0.00025,2]
[419686022,1775281852858,-151.0,0.00025,2]
[419686023,1775281852869,-800.74320599,0.000251,3]
[419686024,1775281852878,-2042.15544935,0.00025264,2]
[419686025,1775281852887,-160.0,0.00025272,3]
[419686026,1775281852896,-160.66633232,0.00025272,5]
[419686027,1775281852905,-600.0,0.00025294,10]
[419686028,1775281852914,-151.0,0.00025294,2]
[419686029,1775281852924,-151.0,0.00025294,2]
[419686030,1775281852934,-151.0,0.00025294,2]
[419686031,1775281852944,-151.0,0.00025294,2]
[419686032,1775281852953,-8257.55700999,0.000253,2]
[419686033,1775281852963,-151.0,0.000253,2]
[419686034,1775281852972,-151.0,0.000253,2]
[419686035,1775281852981,-151.0,0.000253,2]
[419686036,1775281852990,-151.0,0.000253,2]
[419686037,1775281853000,-151.0,0.000253,2]
[419686038,1775281853010,-194.42414196,0.00025444,7]
[419686039,1775281853019,-194.42414196,0.00025444,7]
[419686040,1775281853030,-150.29646568,0.00025444,7]
[419686041,1775281853039,-150.29646568,0.00025444,7]
[419686042,1775281853048,-270.83333333,0.00025444,7]
[419686043,1775281853058,-836962.13030879,0.00025444,2]
[419686044,1775281853155,-9992.02300971,0.00025444,2]
[419686045,1775281853178,-34288.03036072,0.00025444,2]
[419686048,1775281911994,3218.99,0.00034762,120]
[419686049,1775281956042,3098.02467158,0.00032876,120]
[419686050,1775282499471,-250.29754891,0.00013699,2]
[419686051,1775282813721,500.0,0.000328,120]
[419686055,1775282904133,500.0,0.00032,120]
[419686056,1775282922768,1000.0,0.00032,120]
[419686058,1775282928474,500.0,0.00034717,120]
[419686059,1775282928695,500.0,0.00034717,120]
[419686060,1775282928917,500.0,0.00034717,120]
[419686061,1775282929169,500.0,0.00034717,120]
[419686062,1775282929397,500.0,0.00034717,120]
[419686063,1775282929752,500.0,0.00034717,120]
[419686064,1775282930006,500.0,0.00034717,120]
[419686065,1775282930134,500.0,0.00034717,120]
[419686066,1775282930354,500.0,0.00034717,120]
[419686067,1775282930594,479.08585114,0.00034717,120]
[419686068,1775282930665,1065.37284069,0.00032,120]
[419686086,1775282995238,25711.72606134,0.00032877,120]
[419686090,1775283032148,-300.0,0.00013697,2]
[419686091,1775283032158,-1200.0,0.00013697,2]
[419686092,1775283032168,-300.0,0.00013698,2]
[419686093,1775283032178,-300.0,0.00013698,2]
[419686094,1775283032188,-300.0,0.00013698,2]
[419686095,1775283032197,-300.0,0.00013698,2]
[419686096,1775283032207,-500.0,0.00013699,2]
[419686097,1775283032219,-479.51808532,0.00013699,2]
[419686098,1775283032228,-1000.0,0.00013699,2]
[419686099,1775283032239,-502.42695797,0.000139,2]
[419686100,1775283032248,-300.0,0.00013972,2]
[419686101,1775283032258,-300.0,0.00013972,2]
[419686102,1775283032267,-300.0,0.00013972,2]
[419686103,1775283032277,-300.0,0.00013972,2]
[419686104,1775283032287,-300.0,0.00013972,2]
[419686105,1775283032296,-300.0,0.00013972,2]
[419686106,1775283032306,-300.0,0.00013972,2]
[419686107,1775283032315,-300.0,0.00013972,2]
[419686108,1775283032324,-300.0,0.00013972,2]
[419686109,1775283032334,-300.0,0.00013972,2]
[419686110,1775283032344,-300.0,0.00013972,2]
[419686111,1775283032354,-300.0,0.00013972,2]
[419686112,1775283032364,-300.0,0.00013972,2]
[419686113,1775283032374,-300.0,0.00013972,2]
[419686114,1775283032383,-300.0,0.00013972,2]
[419686115,1775283032393,-153.0,0.00016172,2]
[419686116,1775283032403,-153.0,0.00017172,2]
[419686117,1775283032413,-250.49626475,0.00017917,2]
[419686118,1775283032422,-166.14671834,0.00018172,2]
[419686119,1775283032432,-394.14378423,0.0002196,2]
[419686120,1775283032441,-122.06646438,0.00022,2]
[419686121,1775283032453,-545.83712939,0.00022,2]
[419686122,1775283032465,-2332.09640623,0.00022,2]
[419686123,1775283032474,-824.88641777,0.00022,2]
[419686124,1775283032486,-1313.19998,0.00022,2]
[419686149,1775283038226,-10150.91495091,0.00022,2]
[419686151,1775283038236,-3000.0,0.0002201,2]
[419686153,1775283038246,-3000.0,0.0002202,2]
[419686155,1775283038255,-3000.0,0.0002203,2]
[419686157,1775283038268,-3000.0,0.0002204,2]
[419686159,1775283038278,-3000.0,0.0002205,2]
[419686160,1775283038287,-3000.0,0.0002206,2]
[419686161,1775283038296,-3000.0,0.0002207,2]
[419686162,1775283038306,-3000.0,0.0002208,2]
[419686163,1775283038315,-3130.101478,0.0002209,2]
[419686164,1775283038325,-600.0,0.00022439,10]
[419686165,1775283038335,-270.83333333,0.00023,2]
[419686166,1775283038344,-394.14378417,0.00023094,2]
[419686167,1775283038354,-737.0,0.000234,2]
[419686168,1775283038363,-184.0,0.000234,2]
[419686169,1775283038373,-440.0,0.000234,2]
[419686170,1775283038383,-6390.00645374,0.00023998,2]
[419686171,1775283038394,-3236.23883582,0.00023998,2]
[419686172,1775283038410,-612.137328,0.00023998,2]
[419686313,1775283043358,-9428.68823027,0.00023998,2]
[419686322,1775283046528,-3359.69191319,0.00023998,2]
[419686323,1775283046843,-6288.99,0.00023998,2]
[419686330,1775283982235,9193.999999,0.00034717,120]
[419686370,1775284232262,-156.0,0.00013699,2]
[419686372,1775284232271,-475.87264066,0.00013699,2]
[419686378,1775284232316,-380.3421219,0.00013699,2]
[419686531,1775284238532,-143.78523744,0.00013699,2]
[419686533,1775284238542,-250.0,0.00018101,2]
[419686535,1775284238551,-166.0,0.000209,2]
[419686537,1775284238560,-158.0,0.000209,2]
[419686539,1775284238570,-153.0,0.000209,2]
[419686541,1775284238579,-161.0,0.000209,2]
[419686543,1775284238589,-300.0,0.00021316,2]
[419686546,1775284238598,-300.0,0.00021316,2]
[419686548,1775284238608,-1200.0,0.00021316,2]
[419686550,1775284238618,-300.0,0.00021317,10]
[419686552,1775284238627,-300.0,0.00021317,10]
[419686554,1775284238637,-300.0,0.00021317,10]
[419686556,1775284238646,-300.0,0.00021317,10]
[419686558,1775284238656,-300.0,0.00021317,10]
[419686559,1775284238665,-300.0,0.00021317,10]
[419686560,1775284238675,-188.73447088,0.00021317,10]
[419686561,1775284238770,-111.26552912,0.00021317,10]
[419686562,1775284238780,-300.0,0.00021317,10]
[419686564,1775284238789,-300.0,0.00021317,10]
[419686566,1775284238798,-300.0,0.00021317,10]
[419686568,1775284238808,-300.0,0.00021317,10]
[419686570,1775284238818,-32.92326542,0.00021317,10]
[419686572,1775284238829,-267.07673458,0.00021317,10]
[419686574,1775284238838,-300.0,0.00021317,10]
[419686576,1775284238848,-300.0,0.00021317,10]
[419686578,1775284238858,-300.0,0.00021317,10]
[419686591,1775284238972,-153.0,0.000219,2]
[419686593,1775284238982,-2451.9303218,0.00022093,2]
[419686595,1775284238992,-253.31995379,0.00022563,2]
[419686597,1775284239001,-395.41661538,0.00022563,2]
[419686599,1775284239011,-153.0,0.000229,2]
[419686601,1775284239020,-1680.0,0.00023289,2]
[419686603,1775284239030,-270.83333333,0.00023775,2]
[419686605,1775284239039,-153.0,0.000239,2]
[419686607,1775284239048,-6762.9134541,0.00023998,2]
[419686609,1775284239058,-324.9815827,0.00024065,2]
[419686611,1775284239067,-196.2151627,0.00024065,2]
[419686613,1775284239077,-200.42,0.000241,7]
[419686615,1775284239087,-21190.24684149,0.00024198,2]
[419686826,1775284241073,-11504.56505699,0.00024198,2]
[419686828,1775284241084,-2288.72719031,0.00024198,2]
[419687016,1775284243771,-5213.9298638,0.00024198,2]
[419687026,1775284246688,-32638.71672231,0.00024198,2]
[419687028,1775284246796,-4602.33260778,0.00024198,2]
[419687031,1775284343631,4378.04653413,0.00019001,2]
[419687032,1775284383528,1200.3,0.000309,120]
[419687033,1775284383937,1200.3,0.000319,120]
[419687056,1775285432512,-963.94542823,0.00013699,2]
[419687057,1775285432524,-36.05457177,0.00013699,2]
[419687058,1775285432534,-251.11932049,0.00018101,2]
[419687059,1775285432544,-160.32234987,0.00022,2]
[419687060,1775285432553,-147.04864495,0.00022,2]
[419687063,1775285432567,-10.54716228,0.00022,2]
[419687064,1775285432576,-641.19290044,0.000225,2]
[419687481,1775285442451,-3358.80709956,0.000225,2]
[419687483,1775285442461,-215.0361312,0.00022775,2]
[419687485,1775285442471,-1200.0,0.00022982,2]
[419687487,1775285442481,-2909.4823676,0.00022983,2]
[419687489,1775285442490,-300.0,0.00023749,2]
[419687491,1775285442499,-203.40905564,0.0002375,2]
[419687493,1775285442509,-365.77016385,0.0002375,2]
[419687495,1775285442519,-4421.24090705,0.00023793,2]
[419687497,1775285442529,-3195.6123017,0.00023794,2]
[419687499,1775285442539,-161.3143201,0.00023794,2]
[419687501,1775285442549,-270.83333333,0.00023946,2]
[419687503,1775285442558,-500.0,0.00023973,2]
[419687505,1775285442568,-212.6923461,0.00023973,2]
[419687507,1775285442577,-500.0,0.00023973,2]
[419687509,1775285442587,-495.69459142,0.00023973,2]
[419687511,1775285442598,-503.13828555,0.00023973,2]
[419687513,1775285442607,-500.0,0.00023995,2]
[419687515,1775285442617,-500.0,0.00023995,2]
[419687517,1775285442626,-396.5728559,0.00023995,2]
[419687519,1775285442636,-500.0,0.00023995,2]
[419687522,1775285442645,-500.0,0.00023995,2]
[419687524,1775285442654,-167.63230294,0.00023995,2]
[419687526,1775285442664,-500.0,0.00023995,2]
[419687528,1775285442673,-500.0,0.00023995,2]
[419687530,1775285442683,-500.0,0.00023995,2]
[419687532,1775285442693,-500.0,0.00023995,2]
[419687534,1775285442702,-500.0,0.00023995,2]
[419687536,1775285442712,-500.0,0.00023995,2]
[419687538,1775285442722,-500.0,0.00023995,2]
[419687540,1775285442732,-500.0,0.00023995,2]
[419687542,1775285442741,-500.0,0.00023995,2]
[419687544,1775285442751,-500.0,0.00023995,2]
[419687546,1775285442761,-478.56542599,0.00023995,2]
[419687548,1775285442771,-255.63131308,0.00023995,2]
[419687550,1775285442780,-500.0,0.00023995,2]
[419687552,1775285442790,-500.0,0.00023995,2]
[419687554,1775285442799,-500.0,0.00023995,2]
[419687556,1775285442809,-500.0,0.00023995,2]
[419687558,1775285442818,-500.0,0.00023995,2]
[419687560,1775285442827,-500.0,0.00023995,2]
[419687562,1775285442837,-500.0,0.00023995,2]
[419687564,1775285442846,-500.0,0.00023995,2]
[419687566,1775285442856,-500.0,0.00023995,2]
[419687568,1775285442865,-500.0,0.00023995,2]
[419687570,1775285442875,-500.0,0.00023995,2]
[419687572,1775285442885,-500.0,0.00023995,2]
[419687574,1775285442894,-500.0,0.00023995,2]
[419687576,1775285442903,-500.0,0.00023995,2]
[419687578,1775285442913,-500.0,0.00023995,2]
[419687580,1775285442923,-500.0,0.00023995,2]
[419687582,1775285442932,-500.0,0.00023995,2]
[419687584,1775285442942,-500.0,0.00023995,2]
[419687586,1775285442951,-500.0,0.00023995,2]
[419687588,1775285442961,-219.70817599,0.00023995,2]
[419687590,1775285442974,-280.29182401,0.00023995,2]
[419687592,1775285442983,-500.0,0.00023995,2]
[419687594,1775285442993,-500.0,0.00023995,2]
[419687596,1775285443003,-500.0,0.00023995,2]
[419687598,1775285443013,-500.0,0.00023995,2]
[419687600,1775285443022,-500.0,0.00023995,2]
[419687602,1775285443033,-500.0,0.00023995,2]